bitfinex-derivatives/quotes_BTCF0:USTF0_20241019
["timestamp","ask_amount","ask_price","bid_price","bid_amount"]
[1729362684684,0.0002,68215.0,68214.0,0.2596714]
[1729362684883,0.0002,68215.0,68214.0,0.47992192]
[1729362685282,0.0002,68215.0,68214.0,0.39221705]
[1729362687979,0.0002,68215.0,68214.0,0.28621552]
[1729362689196,0.0002,68215.0,68214.0,0.34461762]
[1729362691186,0.0002,68215.0,68214.0,0.28621552]
[1729362693488,0.066164,68215.0,68214.0,0.28621552]
[1729362694994,0.066164,68215.0,68214.0,0.09858688]
[1729362694995,0.13037881,68215.0,68214.0,0.09858688]
[1729362695203,0.17537468,68215.0,68214.0,0.09858688]
[1729362695398,0.17537468,68215.0,68214.0,0.16455188]
[1729362699598,0.17537468,68215.0,68214.0,0.09858688]
[1729362699792,0.065969,68210.0,68209.0,0.0002]
[1729362700097,0.17517968,68210.0,68209.0,0.0002]
[1729362701698,0.20161922,68210.0,68209.0,0.0002]
[1729362702498,0.20163993,68210.0,68209.0,0.0002]
[1729362703003,0.09240854,68210.0,68209.0,0.0002]
[1729362703301,0.45320854,68210.0,68209.0,0.0002]
[1729362705997,0.065973,68207.0,68202.0,0.065976]
[1729362706807,0.065973,68206.0,68202.0,0.065976]
[1729362707194,0.065973,68206.0,68203.0,0.065975]
[1729362707409,0.065973,68206.0,68201.0,0.0004]
[1729362707603,0.065973,68206.0,68204.0,0.065974]
[1729362708801,0.38743954,68210.0,68204.0,0.065974]
[1729362709105,0.065974,68205.0,68204.0,0.065974]
[1729362710110,0.13020101,68205.0,68204.0,0.065974]
[1729362718105,0.02929233,68205.0,68204.0,0.24606088]
[1729362719109,0.02929233,68205.0,68204.0,0.065974]
[1729362719298,0.02929233,68205.0,68204.0,0.1389878]
[1729362719500,0.02929233,68205.0,68204.0,0.2458226]
[1729362719701,0.02929233,68205.0,68204.0,0.1389878]
[1729362720401,0.02929233,68205.0,68204.0,0.24587774]
[1729362720998,0.02929233,68205.0,68204.0,0.17286394]
[1729362725110,0.02929233,68205.0,68204.0,0.065974]
[1729362725513,0.13852075,68205.0,68204.0,0.065974]
[1729362728311,0.13852047,68205.0,68204.0,0.065974]
[1729362731220,0.13851954,68205.0,68204.0,0.065974]
[1729362732413,0.13851936,68205.0,68204.0,0.065974]
[1729362733218,0.02929233,68205.0,68204.0,0.17290872]
[1729362734315,0.42677,68209.0,68208.0,0.065971]
[1729362734511,0.42677,68209.0,68208.0,0.17290572]
[1729362734722,0.3608,68209.0,68208.0,0.16010572]
[1729362735124,0.0002,68210.0,68209.0,0.06597]
[1729362735326,0.0002,68210.0,68209.0,0.26068496]
[1729362735623,0.066169,68210.0,68209.0,0.16570472]
[1729362737230,0.066169,68210.0,68209.0,0.25347074]
[1729362737621,0.066169,68210.0,68209.0,0.16570472]
[1729362740115,0.13039143,68210.0,68209.0,0.05877]
[1729362740317,0.17539264,68210.0,68209.0,0.05877]
[1729362742831,0.1753919,68210.0,68209.0,0.05877]
[1729362747130,0.066169,68210.0,68209.0,0.05877]
[1729362747328,0.066169,68210.0,68209.0,0.16570727]
[1729362748519,0.066169,68210.0,68209.0,0.25347329]
[1729362748731,0.066169,68210.0,68209.0,0.16570727]
[1729362749735,0.066169,68210.0,68209.0,0.25347329]
[1729362749926,0.066169,68210.0,68209.0,0.16570727]
[1729362750634,0.066169,68210.0,68209.0,0.25347329]
[1729362751333,0.066169,68210.0,68209.0,0.16570727]
[1729362752230,0.066169,68210.0,68209.0,0.25347329]
[1729362752437,0.066169,68210.0,68209.0,0.16570727]
[1729362752637,0.066169,68210.0,68209.0,0.16566748]
[1729362757642,0.066169,68210.0,68209.0,0.1657341]
[1729362762245,0.17539486,68210.0,68209.0,0.05877]
[1729362762737,0.33638054,68210.0,68209.0,0.05877]
[1729362764345,0.17539486,68210.0,68209.0,0.05877]
[1729362765632,0.33638054,68210.0,68209.0,0.05877]
[1729362766028,0.3363783,68210.0,68209.0,0.05877]
[1729362770344,0.16098568,68210.0,68209.0,0.55812842]
[1729362771334,0.22695468,68210.0,68209.0,0.55812842]
[1729362771947,0.065969,68210.0,68209.0,0.55812842]
[1729362776747,0.065969,68210.0,68209.0,0.55643469]
[1729362777246,0.065969,68210.0,68209.0,0.43961525]
[1729362777447,0.17519257,68210.0,68209.0,0.05877]
[1729362781040,0.17519255,68210.0,68209.0,0.05877]
[1729362785351,0.065969,68210.0,68209.0,0.25310246]
[1729362785549,0.065969,68210.0,68209.0,0.2530994]
[1729362787943,0.065969,68210.0,68209.0,0.1652866]
[1729362792952,0.02639678,68211.0,68209.0,0.1065166]
[1729362793153,0.0002,68211.0,68210.0,0.26030739]
[1729362793354,0.0002,68211.0,68210.0,0.38261344]
[1729362793548,0.0002,68211.0,68210.0,0.60277279]
[1729362794353,0.0002,68211.0,68210.0,0.60275729]
[1729362794656,0.02689474,68211.0,68210.0,0.60275729]
[1729362794956,0.0002,68211.0,68210.0,0.47586502]
[1729362795458,0.0002,68211.0,68210.0,0.56366069]
[1729362795648,0.0002,68211.0,68210.0,0.47586502]
[1729362797853,0.0002,68211.0,68210.0,0.56366069]
[1729362800564,0.08110045,68211.0,68210.0,0.36934842]
[1729362800758,0.10941939,68211.0,68210.0,0.36934842]
[1729362804966,0.10941932,68211.0,68210.0,0.36934842]
[1729362807459,0.0002,68211.0,68210.0,0.60259694]
[1729362807658,0.0002,68211.0,68210.0,0.47576706]
[1729362810869,0.0002,68211.0,68210.0,0.56359722]
[1729362811369,0.0002,68211.0,68210.0,0.47576706]
[1729362812069,0.0002,68211.0,68210.0,0.56359847]
[1729362812373,0.0002,68211.0,68210.0,0.47576706]
[1729362813773,0.0002,68211.0,68210.0,0.56360311]
[1729362814768,0.0002,68211.0,68210.0,0.55159176]
[1729362815159,0.0002,68211.0,68210.0,0.55159283]
[1729362815373,0.10942159,68211.0,68210.0,0.55159283]
[1729362815556,0.10942159,68211.0,68210.0,0.35724842]
[1729362819781,0.10942032,68211.0,68210.0,0.35724842]
[1729362822169,0.17538832,68211.0,68210.0,0.35724842]
[1729362822671,0.066168,68211.0,68210.0,0.59079457]
[1729362822867,0.066168,68211.0,68210.0,0.46381547]
[1729362823375,0.066168,68211.0,68210.0,0.59083009]
[1729362823576,0.066168,68211.0,68210.0,0.46381547]
[1729362824667,0.066168,68211.0,68210.0,0.4638183]
[1729362825175,0.066168,68211.0,68210.0,0.4562183]
[1729362827577,0.065968,68211.0,68210.0,0.4562183]
[1729362830465,0.065968,68211.0,68210.0,0.34964842]
[1729362830870,0.1751875,68211.0,68210.0,0.34964842]
[1729362834281,0.3365401,68211.0,68210.0,0.34964842]
[1729362834581,0.1751875,68211.0,68210.0,0.34964842]
[1729362835378,0.3365401,68211.0,68210.0,0.34964842]
[1729362835983,0.1751875,68211.0,68210.0,0.34964842]
[1729362836368,0.3365401,68211.0,68210.0,0.34964842]
[1729362837580,0.065968,68211.0,68210.0,0.456306]
[1729362838487,0.065968,68211.0,68210.0,0.58336204]
[1729362840989,0.065968,68211.0,68210.0,0.456306]
[1729362841573,0.065968,68211.0,68210.0,0.58341462]
[1729362842084,0.065968,68211.0,68210.0,0.58342581]
[1729362844086,0.065968,68211.0,68210.0,0.456306]
[1729362845085,0.065968,68211.0,68210.0,0.58345633]
[1729362846690,0.065968,68211.0,68210.0,0.456306]
[1729362847794,0.065968,68211.0,68210.0,0.58342672]
[1729362848297,0.065968,68211.0,68210.0,0.5442134]
[1729362850690,0.065968,68211.0,68210.0,0.4979444]
[1729362850996,0.065968,68211.0,68210.0,0.10665758]
[1729362852589,0.10922725,68211.0,68206.0,0.0002]
[1729362852791,0.3608,68213.0,68206.0,0.0002]
[1729362852792,0.065972,68207.0,68206.0,0.0002]
[1729362853100,0.065972,68207.0,68206.0,0.21911202]
[1729362853398,0.17519941,68207.0,68206.0,0.21911202]
[1729362853788,0.17519941,68207.0,68206.0,0.28508502]
[1729362857395,0.17519247,68207.0,68206.0,0.28508502]
[1729362860006,0.20099698,68207.0,68206.0,0.28508502]
[1729362860602,0.09177651,68207.0,68206.0,0.51877451]
[1729362860905,0.02580451,68207.0,68206.0,0.51877451]
[1729362861095,0.3608,68213.0,68206.0,0.51877451]
[1729362861296,0.065967,68212.0,68211.0,0.08789433]
[1729362861496,0.065967,68212.0,68211.0,0.18130636]
[1729362861794,0.065967,68212.0,68211.0,0.16810636]
[1729362862198,0.065967,68212.0,68211.0,0.15490636]
[1729362862406,0.065967,68212.0,68211.0,0.15463131]
[1729362862606,0.065967,68212.0,68211.0,0.14143131]
[1729362865026,0.065967,68212.0,68211.0,0.12823131]
[1729362866229,0.065967,68212.0,68211.0,0.11503131]
[1729362866731,0.065967,68212.0,68211.0,0.10183131]
[1729362868128,0.38751034,68213.0,68210.0,0.07325298]
[1729362868329,0.065968,68211.0,68210.0,0.07325298]
[1729362868730,0.065968,68211.0,68210.0,0.06005298]
[1729362869634,0.065968,68211.0,68210.0,0.04685298]
[1729362870028,0.065968,68211.0,68210.0,0.03365298]
[1729362871136,0.06597,68209.0,68208.0,0.0002]
[1729362875741,0.11097413,68209.0,68208.0,0.0002]
[1729362876054,0.17520073,68209.0,68208.0,0.0002]
[1729362876633,0.10187482,68209.0,68208.0,0.0002]
[1729362876832,0.13019678,68209.0,68208.0,0.0002]
[1729362881631,0.13019803,68209.0,68208.0,0.0002]
[1729362882738,0.06597,68209.0,68208.0,0.0002]
[1729362883145,0.06597,68209.0,68208.0,0.10673552]
[1729362886451,0.06597,68209.0,68208.0,0.10663354]
[1729362890748,0.13019602,68209.0,68208.0,0.0002]
[1729362895746,0.17519982,68209.0,68208.0,0.0002]
[1729362897857,0.3608,68209.0,68208.0,0.23373048]
[1729362898450,0.42677,68209.0,68208.0,0.23373048]
[1729362898750,0.42677,68209.0,68208.0,0.4831145]
[1729362899759,0.38275243,68209.0,68208.0,0.48323478]
[1729362899955,0.38275243,68209.0,68208.0,0.38066623]
[1729362900253,0.47139243,68209.0,68208.0,0.48323554]
[1729362900768,0.47139243,68209.0,68208.0,0.48132388]
[1729362901262,0.47139243,68209.0,68208.0,0.37875457]
[1729362901456,0.47139243,68209.0,68208.0,0.48133411]
[1729362901646,0.47139243,68209.0,68208.0,0.46813411]
[1729362902454,0.47139243,68209.0,68208.0,0.20584804]
[1729362902762,0.47139243,68209.0,68208.0,0.19264804]
[1729362904855,0.47139243,68209.0,68208.0,0.1263386]
[1729362905855,0.065971,68208.0,68207.0,0.0002]
[1729362906063,0.1301969,68208.0,68207.0,0.0002]
[1729362906648,0.17520054,68208.0,68207.0,0.0002]
[1729362909853,0.065971,68208.0,68207.0,0.0002]
[1729362914267,0.065971,68208.0,68207.0,0.07348451]
[1729362915668,0.065971,68208.0,68207.0,0.06028451]
[1729362916258,0.065971,68208.0,68207.0,0.04088451]
[1729362917369,0.065976,68203.0,68202.0,0.08794141]
[1729362917866,0.065976,68203.0,68202.0,0.19400982]
[1729362918466,0.154616,68203.0,68202.0,0.19400982]
[1729362918654,0.154616,68203.0,68202.0,0.10606841]
[1729362919368,0.154616,68203.0,68202.0,0.19397065]
[1729362919963,0.26384736,68203.0,68202.0,0.10607723]
[1729362920167,0.19787136,68203.0,68199.0,0.0436]
[1729362920369,0.065978,68201.0,68199.0,0.0436]
[1729362920974,0.10923136,68200.0,68199.0,0.0436]
[1729362922461,0.161305,68200.0,68199.0,0.0436]
[1729362922663,0.10923136,68200.0,68199.0,0.0436]
[1729362922971,0.10923136,68200.0,68199.0,0.33040142]
[1729362923175,0.16130491,68200.0,68199.0,0.33040142]
[1729362923571,0.13490984,68200.0,68199.0,0.93040142]
[1729362923775,0.03590493,68200.0,68199.0,0.93040142]
[1729362924075,0.07332643,68200.0,68199.0,0.93040142]
[1729362924368,0.10923136,68200.0,68199.0,1.37028142]
[1729362925166,0.10923136,68200.0,68199.0,0.93040142]
[1729362927980,0.0002,68206.0,68199.0,1.09739074]
[1729362928274,0.065975,68204.0,68202.0,0.065976]
[1729362928479,0.065975,68204.0,68203.0,0.23296932]
[1729362928780,0.065975,68204.0,68203.0,0.45238095]
[1729362930069,0.065975,68204.0,68203.0,0.45259606]
[1729362932780,0.065975,68204.0,68203.0,0.32579325]
[1729362933880,0.065975,68204.0,68203.0,0.32578728]
[1729362934869,0.065975,68204.0,68203.0,0.32578614]
[1729362935073,0.065975,68204.0,68203.0,0.27798239]
[1729362939180,0.0002,68206.0,68203.0,0.27798239]
[1729362939385,0.3616,68219.0,68205.0,0.3608]
[1729362939583,0.3616,68219.0,68213.0,0.065966]
[1729362939886,0.065962,68217.0,68213.0,0.27234675]
[1729362940383,0.065962,68217.0,68213.0,0.25914675]
[1729362940581,0.066164,68216.0,68213.0,0.25914675]
[1729362943073,0.02891981,68214.0,68213.0,0.16473286]
[1729362943281,0.0006,68214.0,68213.0,0.23069886]
[1729362944888,0.10982236,68214.0,68213.0,0.23069886]
[1729362946091,0.17578736,68214.0,68213.0,0.23069886]
[1729362948476,0.066565,68214.0,68213.0,0.23069886]
[1729362950992,0.0006,68214.0,68213.0,0.23069886]
[1729362951883,0.0006,68214.0,68213.0,0.46427651]
[1729362952079,0.0006,68214.0,68213.0,0.23069886]
[1729362956983,0.0006,68214.0,68213.0,0.42487612]
[1729362958691,0.0006,68214.0,68213.0,0.42485932]
[1729362958987,0.0006,68214.0,68213.0,0.23069886]
[1729362958988,0.10980972,68214.0,68213.0,0.23069886]
[1729362962088,0.0739119,68214.0,68213.0,0.23069886]
[1729362962289,0.10980971,68214.0,68213.0,0.23069886]
[1729362962995,0.10980971,68214.0,68213.0,0.12705357]
[1729362965997,0.02928914,68215.0,68213.0,0.23426555]
[1729362966297,0.02928914,68215.0,68214.0,0.1949429]
[1729362966799,0.02928914,68215.0,68214.0,0.41480701]
[1729362967094,0.02928914,68215.0,68214.0,0.4145566]
[1729362967394,0.02928914,68215.0,68214.0,0.32682568]
[1729362968082,0.02928914,68215.0,68214.0,0.41457748]
[1729362968286,0.02928914,68215.0,68214.0,0.32682568]
[1729362969201,0.02928914,68215.0,68214.0,0.41461017]
[1729362969393,0.39008914,68215.0,68214.0,0.10696157]
[1729362969590,0.39008914,68215.0,68214.0,0.07319327]
[1729362969789,0.065965,68214.0,68213.0,0.05999327]
[1729362969988,0.065966,68213.0,68212.0,0.0002]
[1729362970303,0.065966,68213.0,68212.0,0.10766349]
[1729362970602,0.065966,68213.0,68212.0,0.0002]
[1729362970785,0.065971,68208.0,68207.0,0.0002]
[1729362970989,0.426771,68208.0,68207.0,0.10775863]
[1729362971496,0.426771,68208.0,68207.0,0.0002]
[1729362973804,0.49099737,68208.0,68207.0,0.0002]
[1729362973990,0.13019737,68208.0,68207.0,0.0002]
[1729362974193,0.49099737,68208.0,68207.0,0.0002]
[1729362976594,0.065976,68203.0,68202.0,0.065977]
[1729362976801,0.09429785,68203.0,68200.0,0.0021992]
[1729362976997,0.10642185,68202.0,68200.0,0.0021992]
[1729362977200,0.02832185,68201.0,68200.0,0.0021992]
[1729362977499,0.0781,68202.0,68200.0,0.0021992]
[1729362978602,0.144077,68202.0,68200.0,0.0021992]
[1729362979692,0.0379,68201.0,68200.0,0.0021992]
[1729362980088,0.0379,68201.0,68200.0,0.0681782]
[1729362980490,0.3608,68208.0,68200.0,0.0021992]
[1729362980693,0.11696186,68207.0,68206.0,0.065972]
[1729362980895,0.08864,68207.0,68206.0,0.12447905]
[1729362981109,0.08864,68207.0,68205.0,0.0002]
[1729362981110,0.065968,68212.0,68205.0,0.0002]
[1729362981299,0.0002,68212.0,68208.0,0.065971]
[1729362981605,0.0002,68212.0,68208.0,0.3927772]
[1729362983397,0.0002,68212.0,68210.0,0.065969]
[1729362983592,0.0002,68212.0,68210.0,0.17295221]
[1729362983791,0.0002,68212.0,68210.0,0.39381515]
[1729362986301,0.0002,68212.0,68210.0,0.39371424]
[1729362989019,0.0002,68212.0,68210.0,0.28683194]
[1729362996119,0.16129441,68212.0,68210.0,0.20059992]
[1729362996411,0.16129441,68212.0,68210.0,0.26656892]
[1729362996606,0.08109682,68211.0,68210.0,0.26656892]
[1729362996810,0.03609938,68211.0,68210.0,0.26656892]
[1729362997010,0.0002,68211.0,68210.0,0.26656892]
[1729362997205,0.10941449,68211.0,68210.0,0.26656892]
[1729363002609,0.16129441,68211.0,68210.0,0.26656892]
[1729363002918,0.2705089,68211.0,68210.0,0.26656892]
[1729363003308,0.10941449,68211.0,68210.0,0.26656892]
[1729363004017,0.0002,68211.0,68210.0,0.46186298]
[1729363005404,0.0002,68211.0,68210.0,0.46188692]
[1729363005810,0.16129441,68212.0,68210.0,0.39591792]
[1729363006009,0.16129441,68212.0,68211.0,0.17364488]
[1729363006214,0.16129441,68212.0,68211.0,0.261286]
[1729363006405,0.16129441,68212.0,68211.0,0.46785678]
[1729363006819,0.16129441,68212.0,68211.0,0.46235678]
[1729363007014,0.16129441,68212.0,68211.0,0.4624392]
[1729363007321,0.16129441,68212.0,68211.0,0.36771566]
[1729363009317,0.16129441,68212.0,68211.0,0.49622219]
[1729363009710,0.16129441,68212.0,68211.0,0.49635492]
[1729363010128,0.16129441,68212.0,68211.0,0.36784912]
[1729363010426,0.16129441,68212.0,68211.0,0.49644985]
[1729363011016,0.22531165,68212.0,68211.0,0.26003878]
[1729363011919,0.22531099,68212.0,68211.0,0.26003878]
[1729363012916,0.06421658,68212.0,68211.0,0.26003878]
[1729363015317,0.06421774,68212.0,68211.0,0.28573878]
[1729363016619,0.02831797,68212.0,68211.0,0.28573878]
[1729363019129,0.065965,68215.0,68213.0,0.065966]
[1729363019319,0.065965,68215.0,68214.0,0.1077806]
[1729363020935,0.065965,68215.0,68214.0,0.1737456]
[1729363021232,0.0002,68216.0,68215.0,0.065964]
[1729363021421,0.0002,68216.0,68215.0,0.1737446]
[1729363021621,0.0002,68216.0,68215.0,0.39408729]
[1729363021821,0.0002,68216.0,68215.0,0.4819203]
[1729363023527,0.0002,68216.0,68215.0,0.48191294]
[1729363024036,0.066163,68216.0,68215.0,0.39407993]
[1729363025131,0.066163,68216.0,68215.0,0.48191524]
[1729363025330,0.066163,68216.0,68215.0,0.19560855]
[1729363025633,0.066163,68216.0,68215.0,0.10777324]
[1729363026018,0.066163,68216.0,68212.0,0.0002]
[1729363026019,0.065966,68213.0,68212.0,0.0002]
[1729363026218,0.065967,68212.0,68211.0,0.0002]
[1729363026427,0.13478628,68212.0,68211.0,0.0002]
[1729363026630,0.13478628,68212.0,68211.0,0.21932587]
[1729363026631,0.21568772,68212.0,68211.0,0.21932587]
[1729363027731,0.17068771,68212.0,68211.0,0.21932587]
[1729363027938,0.17068771,68212.0,68211.0,0.0002]
[1729363033340,0.106467,68212.0,68211.0,0.1082427]
[1729363033539,0.706467,68212.0,68211.0,0.19604578]
[1729363034140,0.106467,68212.0,68211.0,0.19604578]
[1729363034344,0.706467,68212.0,68211.0,0.19604578]
[1729363034841,0.106467,68212.0,68211.0,0.19604578]
[1729363035336,1.146267,68212.0,68211.0,0.1082427]
[1729363035536,0.106467,68212.0,68211.0,0.1082427]
[1729363035731,1.146267,68212.0,68211.0,0.1082427]
[1729363037236,1.234907,68212.0,68211.0,0.1082427]
[1729363041231,0.795107,68212.0,68211.0,0.0002]
[1729363046346,0.195107,68212.0,68211.0,0.0002]
[1729363048143,0.25933133,68212.0,68211.0,0.0002]
[1729363048342,0.30433387,68212.0,68211.0,0.0002]
[1729363049349,0.46563691,68212.0,68211.0,0.0002]
[1729363050651,0.30433387,68212.0,68211.0,0.0002]
[1729363051755,0.46563691,68212.0,68211.0,0.0002]
[1729363052251,0.35641004,68212.0,68211.0,0.0002]
[1729363052449,0.46563714,68212.0,68211.0,0.0002]
[1729363054563,0.3043341,68212.0,68211.0,0.0002]
[1729363056168,0.195107,68212.0,68211.0,0.07332547]
[1729363056461,0.195107,68212.0,68211.0,0.18152645]
[1729363057356,0.195107,68212.0,68211.0,0.18152214]
[1729363057556,0.195107,68212.0,68211.0,0.10839667]
[1729363062168,0.195107,68212.0,68211.0,0.10843411]
[1729363063253,0.30433435,68212.0,68211.0,0.0002]
[1729363067061,0.30433452,68212.0,68211.0,0.0002]
[1729363071269,0.195107,68212.0,68211.0,0.10846584]
[1729363072178,0.195107,68212.0,68211.0,0.1084588]
[1729363077070,0.195107,68212.0,68211.0,0.10846103]
[1729363078177,0.195107,68212.0,68210.0,0.07325177]
[1729363078178,0.12914,68212.0,68210.0,0.07325177]
[1729363078483,0.06597,68209.0,68208.0,0.07345177]
[1729363078684,0.06597,68209.0,68208.0,0.0002]
[1729363080281,0.06597,68209.0,68208.0,0.07345177]
[1729363081181,0.06597,68209.0,68208.0,0.18181562]
[1729363082181,0.06597,68209.0,68208.0,0.07345177]
[1729363085277,0.06597,68209.0,68208.0,0.0002]
[1729363086386,0.22726709,68209.0,68208.0,0.0002]
[1729363086574,0.33649828,68209.0,68208.0,0.0002]
[1729363086774,0.36224899,68209.0,68208.0,0.0002]
[1729363090587,0.2009519,68209.0,68208.0,0.0002]
[1729363090775,0.25300752,68209.0,68208.0,0.0002]
[1729363090975,0.36223871,68209.0,68208.0,0.0002]
[1729363091983,0.36223844,68209.0,68208.0,0.0002]
[1729363092184,0.45087844,68209.0,68208.0,0.0002]
[1729363092370,0.45088019,68209.0,68208.0,0.0002]
[1729363093273,0.341649,68209.0,68208.0,0.0002]
[1729363093478,0.18036071,68209.0,68208.0,0.10845197]
[1729363093782,0.18036071,68209.0,68208.0,0.18166264]
[1729363094181,0.18036071,68209.0,68208.0,0.0002]
[1729363094688,0.09172071,68209.0,68208.0,0.0002]
[1729363094876,0.18036071,68209.0,68208.0,0.0002]
[1729363095386,0.18036071,68209.0,68208.0,0.18169927]
[1729363096475,0.18036071,68209.0,68208.0,0.10848859]
[1729363096779,0.18036071,68209.0,68208.0,0.09528859]
[1729363099874,0.18036071,68209.0,68208.0,0.16125959]
[1729363100284,0.18036071,68209.0,68208.0,0.065971]
[1729363101489,0.2895879,68209.0,68208.0,0.065971]
[1729363101794,0.45087994,68209.0,68208.0,0.065971]
[1729363102279,0.2895879,68209.0,68208.0,0.065971]
[1729363102881,0.2895879,68209.0,68207.0,0.0819]
[1729363103089,0.10922719,68208.0,68207.0,0.0819]
[1729363103688,0.17519819,68208.0,68207.0,0.0819]
[1729363104089,0.26383819,68208.0,68207.0,0.0819]
[1729363104997,0.19051477,68208.0,68207.0,0.0819]
[1729363105198,0.26383884,68208.0,68207.0,0.0819]
[1729363107795,0.42513088,68208.0,68207.0,0.0819]
[1729363108595,0.27922168,68208.0,68207.0,0.0819]
[1729363108801,0.27922168,68208.0,68207.0,0.16975282]
[1729363110290,0.27922168,68208.0,68207.0,0.16975074]
[1729363110695,0.27922168,68208.0,68207.0,0.0819]
[1729363111593,0.27922168,68208.0,68207.0,0.18970989]
[1729363111996,0.19058168,68208.0,68207.0,0.18970989]
[1729363112198,0.27922168,68208.0,68207.0,0.27755518]
[1729363112582,0.27922168,68208.0,68207.0,0.18970989]
[1729363113086,0.27922168,68208.0,68207.0,0.27755469]
[1729363113591,0.27922168,68208.0,68207.0,0.18970989]
[1729363114500,0.11792964,68208.0,68207.0,0.18970989]
[1729363115390,0.47872964,68208.0,68207.0,0.18970989]
[1729363116392,0.58795911,68208.0,68207.0,0.0819]
[1729363116592,0.74927045,68208.0,68207.0,0.0819]
[1729363117594,0.38847045,68208.0,68207.0,0.0819]
[1729363117793,0.22715911,68208.0,68207.0,0.0819]
[1729363119603,0.22715911,68208.0,68207.0,0.0418]
[1729363119792,0.55866726,68208.0,68205.0,0.0389]
[1729363119992,0.065973,68206.0,68205.0,0.0389]
[1729363120203,0.17520026,68206.0,68205.0,0.0389]
[1729363123392,0.30253566,68208.0,68205.0,0.27565817]
[1729363123393,0.08864,68208.0,68205.0,0.27565817]
[1729363123714,0.08864,68208.0,68206.0,0.23675817]
[1729363123900,0.08864,68208.0,68207.0,0.23675817]
[1729363124404,0.154612,68208.0,68207.0,0.23675817]
[1729363124706,0.154611,68208.0,68207.0,0.23592243]
[1729363125004,0.065971,68208.0,68207.0,0.23592243]
[1729363125596,0.38731071,68209.0,68207.0,0.52038791]
[1729363128402,0.38655071,68209.0,68208.0,0.22272243]
[1729363129411,0.38655071,68209.0,68207.0,0.065972]
[1729363129614,0.45252071,68209.0,68208.0,0.12826256]
[1729363129912,0.45252071,68209.0,68208.0,0.34781728]
[1729363131514,0.45252071,68209.0,68208.0,0.30741822]
[1729363136820,0.45252071,68209.0,68208.0,0.21955472]
[1729363137217,0.065972,68207.0,68206.0,0.0878635]
[1729363138622,0.065972,68207.0,68204.0,0.0002]
[1729363138623,0.065973,68206.0,68204.0,0.0002]
[1729363138808,0.1092293,68205.0,68204.0,0.0002]
[1729363139316,0.10922917,68205.0,68204.0,0.0002]
[1729363139915,0.17520317,68205.0,68204.0,0.0002]
[1729363140515,0.10922917,68205.0,68204.0,0.066175]
[1729363140716,0.17520317,68205.0,68204.0,0.106875]
[1729363146722,0.3608,68208.0,68204.0,0.49212004]
[1729363146923,0.065972,68207.0,68205.0,0.5023925]
[1729363147122,0.065972,68207.0,68206.0,0.38524504]
[1729363147324,0.065972,68207.0,68206.0,0.38524695]
[1729363148831,0.3608,68208.0,68206.0,0.38524695]
[1729363149132,0.426771,68208.0,68207.0,0.38524695]
[1729363149736,0.426771,68208.0,68207.0,0.37204695]
[1729363150233,0.426771,68208.0,68207.0,0.35264695]
[1729363152327,0.426771,68208.0,68207.0,0.27592106]
[1729363153433,0.3387383,68208.0,68207.0,0.27592106]
[1729363153630,0.44796488,68208.0,68206.0,0.065973]
[1729363153831,0.10922658,68207.0,68206.0,0.065973]
[1729363157131,0.10922623,68207.0,68206.0,0.065973]
[1729363159537,0.06422395,68207.0,68206.0,0.065973]
[1729363160637,0.10922462,68209.0,68206.0,0.065973]
[1729363160845,0.10922462,68208.0,68206.0,0.065973]
[1729363161045,0.06422395,68207.0,68206.0,0.065973]
[1729363161634,0.13226219,68210.0,68206.0,0.19271444]
[1729363161943,0.13226219,68210.0,68207.0,0.1267377]
[1729363162129,0.13226219,68210.0,68206.0,0.065973]
[1729363162130,0.13226219,68210.0,68208.0,0.1267377]
[1729363162438,0.13226219,68210.0,68209.0,0.1267377]
[1729363163536,0.13226219,68210.0,68206.0,0.065973]
[1729363163844,0.13226219,68210.0,68207.0,0.12680532]
[1729363164045,0.13226219,68210.0,68208.0,0.12680532]
[1729363164344,0.13226219,68210.0,68206.0,0.065973]
[1729363164544,0.13226219,68210.0,68207.0,0.12679559]
[1729363164842,0.06597,68209.0,68208.0,0.12679559]
[1729363165144,0.06597,68209.0,68208.0,0.23318128]
[1729363166043,0.0004,68211.0,68210.0,0.065969]
[1729363166243,0.0004,68211.0,68210.0,0.2990588]
[1729363166539,0.0006,68212.0,68210.0,0.2990588]
[1729363166540,0.3995,68221.0,68210.0,0.95976389]
[1729363166740,0.3995,68221.0,68213.0,0.065966]
[1729363166945,0.02597511,68218.0,68215.0,0.065964]
[1729363167245,0.02597511,68218.0,68215.0,0.51960994]
[1729363168740,0.02597511,68218.0,68215.0,0.39305073]
[1729363175242,0.0002,68218.0,68215.0,0.39305073]
[1729363176354,0.0002,68218.0,68215.0,0.39244101]
[1729363176854,0.06441345,68216.0,68215.0,0.16930665]
[1729363177258,0.06441345,68216.0,68215.0,0.11523769]
[1729363177452,0.06441345,68216.0,68215.0,0.18120169]
[1729363177757,0.10940837,68216.0,68215.0,0.18120169]
[1729363181156,0.1094098,68216.0,68215.0,0.18120169]
[1729363183764,0.0002,68216.0,68215.0,0.28826979]
[1729363190941,0.0002,68216.0,68215.0,0.2884062]
[1729363191757,0.02851716,68216.0,68215.0,0.06383908]
[1729363191961,0.10941254,68216.0,68215.0,0.28482823]
[1729363192558,0.10941192,68216.0,68215.0,0.28482823]
[1729363198755,0.0002,68216.0,68215.0,0.52195778]
[1729363198964,0.02968524,68218.0,68215.0,0.52195778]
[1729363199165,0.02968524,68218.0,68216.0,0.23712955]
[1729363199358,0.02968524,68218.0,68217.0,0.10818143]
[1729363199558,0.02968524,68218.0,68217.0,0.32698107]
[1729363200455,0.02968524,68218.0,68217.0,0.10818143]
[1729363200657,0.02691039,68219.0,68216.0,0.0732226]
[1729363200857,0.065962,68217.0,68216.0,0.0734226]
[1729363201154,0.065962,68217.0,68216.0,0.18157531]
[1729363201359,0.065962,68217.0,68216.0,0.10834797]
[1729363201561,0.065962,68217.0,68216.0,0.07340211]
[1729363201770,0.065962,68217.0,68216.0,0.0002]
[1729363201960,0.065962,68217.0,68216.0,0.07340211]
[1729363202164,0.065962,68217.0,68216.0,0.1814924]
[1729363202468,0.065962,68217.0,68216.0,0.0002]
[1729363205867,0.09428056,68217.0,68216.0,0.0002]
[1729363206068,0.10921792,68217.0,68210.0,0.0002]
[1729363206279,0.05258081,68220.0,68216.0,0.22066947]
[1729363206467,0.05258081,68220.0,68210.0,0.0002]
[1729363206468,0.02831825,68219.0,68218.0,0.0002]
[1729363206775,0.10921673,68219.0,68218.0,0.0002]
[1729363208572,0.10921398,68219.0,68218.0,0.0002]